bitfinex/quotes_ETHUSD_20240922
["timestamp","ask_amount","ask_price","bid_price","bid_amount"]
[1727016212508,3.89909,2564.7,2564.1,5.31470981]
[1727016212801,3.89909,2564.7,2564.2,3.89984]
[1727016213004,3.89895,2564.8,2564.2,3.89984]
[1727016213827,3.89895,2564.8,2564.3,3.89968]
[1727016214821,3.89895,2564.8,2564.3,3.89962]
[1727016215328,4.678718,2564.8,2564.1,3.89988]
[1727016216234,3.89928,2564.6,2564.1,3.89988]
[1727016216631,4.678718,2564.8,2564.1,3.89988]
[1727016216632,3.89916,2564.7,2564.1,3.89988]
[1727016216948,3.89916,2564.7,2564.1,7.79979]
[1727016217148,3.89916,2564.7,2564.1,3.89988]
[1727016217347,3.89916,2564.7,2564.1,5.31470681]
[1727016217706,3.89916,2564.7,2564.1,9.21462681]
[1727016217924,4.678718,2564.8,2564.1,5.31470681]
[1727016217925,3.89924,2564.6,2564.1,5.31470681]
[1727016218447,3.89924,2564.6,2564.1,3.89988]
[1727016218745,4.678718,2564.8,2564.2,3.89975]
[1727016218947,3.89895,2564.8,2564.2,3.89975]
[1727016219121,7.79799,2564.8,2564.2,3.89975]
[1727016219336,3.89913,2564.7,2564.2,3.89975]
[1727016219505,3.89925,2564.6,2564.1,3.89988]
[1727016220405,3.89925,2564.6,2564.1,7.7998]
[1727016220643,3.89925,2564.6,2564.1,3.89988]
[1727016220854,3.89895,2564.8,2564.1,3.89988]
[1727016221146,3.89925,2564.6,2564.1,7.7998]
[1727016221304,3.89925,2564.6,2564.1,3.89988]
[1727016221738,0.06493438,2564.5,2564.1,3.89988]
[1727016223152,0.06493438,2564.5,2564.0,0.42648807]
[1727016223153,0.06493438,2564.5,2564.2,0.07799266]
[1727016223457,7.79751,2565.0,2564.3,3.89955]
[1727016223749,4.92944579,2565.0,2564.5,3.89935]
[1727016224046,0.06495105,2564.9,2564.5,3.89935]
[1727016224749,0.06495105,2564.9,2564.5,3.8993]
[1727016225272,3.96375105,2564.9,2564.3,3.89955]
[1727016225620,3.96375105,2564.9,2564.4,3.89953]
[1727016227274,0.06495105,2564.9,2564.7,3.89896]
[1727016227571,0.0775143,2565.1,2564.7,3.89896]
[1727016227737,0.0649959,2565.0,2564.7,3.89896]
[1727016228062,0.0649959,2565.0,2564.9,6.89878]
[1727016228266,0.0649959,2565.0,2564.9,9.24913752]
[1727016228479,0.0775143,2565.1,2565.0,3.89863]
[1727016229763,0.0775143,2565.1,2565.0,6.89863]
[1727016243621,0.0775143,2565.1,2564.9,3.89878]
[1727016243840,0.06144429,2565.0,2564.7,3.89897]
[1727016244035,0.06144429,2565.0,2564.6,3.89914]
[1727016244259,0.06144429,2565.0,2564.6,5.646623]
[1727016244428,0.06144429,2565.0,2564.7,3.89901]
[1727016246860,0.06144429,2565.0,2564.8,3.89883]
[1727016247032,0.06144429,2565.0,2564.7,3.89901]
[1727016247234,0.06144429,2565.0,2564.7,7.79801]
[1727016247573,0.06144429,2565.0,2564.8,3.89892]
[1727016247856,0.06144429,2565.0,2564.7,4.8536193]
[1727016248255,0.06144429,2565.0,2564.7,4.8535393]
[1727016248827,0.06144429,2565.0,2564.9,3.89878]
[1727016249661,0.06144429,2565.0,2564.8,7.79778]
[1727016249863,0.06144429,2565.0,2564.8,8.84776123]
[1727016250027,0.06144429,2565.0,2564.9,3.89878]
[1727016253231,0.06144429,2565.0,2564.8,4.94891123]
[1727016253379,0.06144429,2565.0,2564.8,8.84776123]
[1727016253999,0.06144429,2565.0,2564.9,3.89878]
[1727016254139,0.06144429,2565.0,2564.9,4.78354112]
[1727016254785,0.06144429,2565.0,2564.9,7.07994112]
[1727016255439,0.06144429,2565.0,2564.9,4.78354112]
[1727016255635,0.06144429,2565.0,2564.9,3.89878]
[1727016274233,0.06144429,2565.0,2564.9,6.89878]
[1727016274442,0.06144429,2565.0,2564.9,9.72463005]
[1727016274717,0.0775143,2565.1,2565.0,6.89863]
[1727016274928,0.0775143,2565.1,2565.0,7.24782381]
[1727016275086,0.0775143,2565.1,2565.0,9.07341149]
[1727016276642,0.0775143,2565.1,2565.0,8.72421768]
[1727016277160,0.0775143,2565.1,2565.0,9.07336536]
[1727016279835,0.0775143,2565.1,2565.0,8.72421768]
[1727016280675,0.0775143,2565.1,2565.0,6.89863]
[1727016280972,0.13875193,2565.1,2565.0,6.89863]
[1727016282135,0.0775143,2565.1,2565.0,6.89863]
[1727016284035,0.13878836,2565.1,2565.0,6.89863]
[1727016284236,0.0775143,2565.1,2565.0,6.89863]
[1727016284845,0.138792,2565.1,2565.0,6.89863]
[1727016285050,0.0775143,2565.1,2565.0,7.978371]
[1727016286354,2.2545,2565.4,2565.1,3.0]
[1727016286556,2.2545,2565.4,2565.1,3.89845]
[1727016286557,2.3272302,2565.4,2565.1,3.89845]
[1727016286758,0.06128548,2565.3,2565.1,3.89845]
[1727016288377,0.06128548,2565.3,2565.1,7.79685]
[1727016288677,0.06128548,2565.3,2565.1,3.8984]
[1727016288881,0.06128548,2565.3,2565.2,3.97628995]
[1727016289878,0.1104216,2565.5,2565.3,3.89817]
[1727016290300,0.1104216,2565.5,2565.3,7.79627]
[1727016290650,0.1104216,2565.5,2565.3,3.8981]
[1727016291191,0.1104216,2565.5,2565.3,3.89809]
[1727016291689,0.1104216,2565.5,2565.3,7.79619]
[1727016291854,0.1104216,2565.5,2565.3,4.677709]
[1727016292054,0.1104216,2565.5,2565.3,8.575789]
[1727016292386,0.1104216,2565.5,2565.4,3.89802]
[1727016296770,0.17123738,2565.5,2565.4,3.89802]
[1727016297473,0.17123738,2565.5,2565.4,6.89802]
[1727016297674,0.17123738,2565.5,2565.4,8.3016619]
[1727016303632,0.17123738,2565.5,2565.4,5.3016619]
[1727016305431,0.1649978,2565.5,2565.4,5.3016619]
[1727016310250,0.1649978,2565.5,2565.4,8.3016619]
[1727016310539,0.10418202,2565.5,2565.4,10.7623619]
[1727016310697,0.10418202,2565.5,2565.4,11.11140751]
[1727016311816,0.10418202,2565.5,2565.4,12.32868514]
[1727016312107,0.10418202,2565.5,2565.4,11.97963953]
[1727016312809,0.10418202,2565.5,2565.4,12.53799126]
[1727016313023,0.10418202,2565.5,2565.4,12.88696109]
[1727016313339,0.10418202,2565.5,2565.4,13.06731291]
[1727016314052,0.10418202,2565.5,2565.4,11.85003528]
[1727016314598,0.10418202,2565.5,2565.4,12.66702865]
[1727016315237,0.10418202,2565.5,2565.4,12.10867692]
[1727016315742,0.10418202,2565.5,2565.4,12.66644518]
[1727016316112,0.10418202,2565.5,2565.4,12.10845251]
[1727016316512,0.10418202,2565.5,2565.4,11.29145914]
[1727016316716,0.10418202,2565.5,2565.4,12.10845251]
[1727016317761,0.0376914,2566.3,2566.2,6.89681]
[1727016317903,0.0376914,2566.3,2566.2,8.28715113]
[1727016318212,0.0376914,2566.3,2566.2,8.209235]
[1727016320099,0.0376914,2566.3,2566.2,8.55778563]
[1727016320536,0.0376914,2566.3,2566.2,8.38172021]
[1727016321640,0.0376914,2566.3,2566.2,8.209235]
[1727016323303,0.0376914,2566.3,2566.2,5.209235]
[1727016323539,0.09892821,2566.3,2566.2,3.89681]
[1727016323708,0.0376914,2566.3,2566.2,3.89681]
[1727016323902,0.09949943,2566.3,2566.2,3.89681]
[1727016324149,0.0376914,2566.3,2566.2,3.89681]
[1727016324856,0.09949943,2566.3,2566.2,3.89681]
[1727016325144,0.09940121,2566.3,2566.1,3.89688]
[1727016325445,2.2617,2566.2,2566.1,3.89688]
[1727016325967,2.32330045,2566.2,2566.1,3.89688]
[1727016327300,2.2617,2566.2,2566.1,3.89688]
[1727016328130,0.0376914,2566.3,2566.2,3.89681]
[1727016328328,0.0991652,2566.3,2566.2,3.97473781]
[1727016331211,0.0991652,2566.3,2566.2,3.89681]
[1727016332350,0.0991652,2566.3,2566.2,4.676179]
[1727016334145,0.0376914,2566.3,2566.2,7.75410354]
[1727016334649,0.0376914,2566.3,2566.2,10.08460354]
[1727016334816,0.0376914,2566.3,2566.2,10.006679]
[1727016335515,0.0376914,2566.3,2566.2,10.18262123]
[1727016335937,0.0376914,2566.3,2566.2,10.006679]
[1727016338056,0.0376914,2567.0,2566.9,3.89574]
[1727016338213,0.0376914,2567.0,2566.9,6.97364455]
[1727016338413,0.09943321,2567.0,2566.9,6.97364455]
[1727016338855,0.0376914,2567.0,2566.9,6.97364455]
[1727016339267,0.0376914,2567.0,2566.9,6.89574]
[1727016340115,0.09943377,2567.0,2566.9,6.89574]
[1727016340630,0.0376914,2567.0,2566.9,6.89574]
[1727016340817,0.09956107,2567.0,2566.9,6.89574]
[1727016342214,0.0376914,2567.0,2566.9,6.89574]
[1727016342416,0.09968473,2567.0,2566.9,6.89574]
[1727016346628,0.09968473,2567.0,2566.9,6.89574]
[1727016348054,0.09968473,2567.0,2566.9,6.97364712]
[1727016348426,0.0376914,2567.0,2566.9,6.97364712]
[1727016348962,0.09964836,2567.0,2566.9,6.97364712]
[1727016350428,0.09964836,2567.0,2566.9,8.06060038]
[1727016350661,0.09964836,2567.0,2566.9,7.98269371]
[1727016350968,0.0376914,2567.0,2566.9,7.98269371]
[1727016355241,0.0996629,2567.0,2566.9,6.89574]
[1727016355445,0.0376914,2567.0,2566.9,6.89574]
[1727016355935,0.0997029,2567.0,2566.9,6.89574]
[1727016356350,2.4723029,2567.0,2566.9,6.89574]
[1727016362639,2.4723029,2567.0,2566.9,3.0]
[1727016362845,2.4723029,2567.0,2566.9,6.89574]
[1727016363047,2.4723029,2567.0,2566.9,3.89574]
[1727016366173,0.0997029,2567.0,2566.9,6.89574]
[1727016366375,0.0997029,2567.0,2566.9,8.06059274]
[1727016366561,0.0376914,2567.0,2566.9,7.98268591]
[1727016378772,0.0376914,2567.0,2566.9,10.24858591]
[1727016379770,0.0376914,2567.0,2566.9,10.59778883]
[1727016380209,0.0376914,2567.0,2566.9,10.24858591]
[1727016380506,0.0376914,2567.0,2566.9,10.59778895]
[1727016381578,0.0376914,2567.0,2566.9,10.5978766]
[1727016383608,0.0376914,2567.0,2566.9,10.59800609]
[1727016384714,0.0376914,2567.0,2566.9,11.97369327]
[1727016385074,0.0376914,2567.0,2566.9,8.33210609]
[1727016385306,0.0376914,2567.0,2566.9,9.707791]
[1727016386017,0.0376914,2567.0,2566.9,11.973691]
[1727016386316,0.0376914,2567.0,2566.9,13.20326125]
[1727016386475,0.0376914,2567.0,2566.9,11.15706328]
[1727016387381,0.0376914,2567.0,2566.9,10.24858591]
[1727016387581,0.0376914,2567.0,2566.9,13.20137017]
[1727016388094,0.0376914,2567.8,2567.7,9.16043]
[1727016388502,0.0376914,2567.8,2567.7,9.50929428]
[1727016390029,0.0376914,2567.8,2567.7,10.32673584]
[1727016390185,0.0376914,2567.8,2567.7,9.50929428]
[1727016390387,0.0376914,2567.8,2567.7,9.16043]
[1727016390585,0.0376914,2567.8,2567.7,10.68808346]
[1727016390834,0.0376914,2567.8,2567.7,8.42218346]
[1727016391902,0.0376914,2567.8,2567.7,8.77061617]
[1727016392430,0.0376914,2567.8,2567.7,8.42218346]
[1727016395448,0.0376914,2567.8,2567.7,10.68808346]
[1727016400957,0.0376914,2567.8,2567.7,10.8667379]
[1727016401330,0.0376914,2567.8,2567.7,10.68808346]
[1727016401499,0.0376914,2567.8,2567.7,8.42218346]
[1727016408759,0.0376914,2567.8,2567.7,10.80108346]
[1727016411171,2.5220914,2568.6,2568.2,3.89376]
[1727016411464,2.5220914,2568.6,2568.5,6.89332]
[1727016415341,2.58053771,2568.6,2568.5,6.89332]
[1727016416035,2.58053771,2568.6,2568.3,3.89352]
[1727016416471,2.58053771,2568.6,2567.8,5.38193365]
[1727016416472,2.4844,2568.5,2568.0,3.89406]
[1727016416836,3.89334,2568.5,2568.0,3.89406]
[1727016417031,2.2883,2568.4,2568.1,3.89392]
[1727016417541,0.05915862,2568.3,2568.1,3.89392]
[1727016417932,0.05915862,2568.3,2568.2,3.0]
[1727016418137,0.05915862,2568.3,2568.1,3.89392]
[1727016418804,0.05915862,2568.3,2568.1,3.89383]
[1727016418950,0.05915862,2568.3,2568.1,7.78766]
[1727016419257,0.05915862,2568.3,2568.2,3.89377]
[1727016419780,2.2883,2568.4,2568.3,3.89362]
[1727016420137,0.0376914,2568.6,2568.5,3.89332]
[1727016420138,2.3259914,2568.6,2568.5,3.89332]
[1727016420359,2.38516166,2568.6,2568.3,3.89348]
[1727016420866,2.38516166,2568.6,2568.4,3.89345]
[1727016421377,2.38516166,2568.6,2568.5,3.89332]
[1727016424661,0.09686166,2568.6,2568.5,3.89332]
[1727016424869,0.09686166,2568.6,2568.5,7.671997]
[1727016425371,0.0376914,2568.6,2568.5,7.671997]
[1727016426065,0.0376914,2568.6,2568.5,10.149597]
[1727016427738,0.0376914,2569.3,2568.5,10.149597]
[1727016427739,0.0376914,2569.3,2569.2,3.89226]
[1727016428066,0.0376914,2569.3,2569.2,7.74855863]
[1727016428436,0.0376914,2569.3,2569.2,7.670725]
[1727016429243,0.0376914,2569.3,2569.2,7.74855052]
[1727016430059,0.0376914,2569.3,2569.2,7.670725]
[1727016431255,2.3259914,2569.3,2569.2,6.89226]
[1727016431655,2.37958247,2569.3,2569.2,6.89226]
[1727016431976,0.09128247,2569.3,2569.2,6.89226]
[1727016432179,0.0376914,2569.3,2569.2,6.89226]
[1727016432688,0.09128485,2569.3,2569.1,3.89239]
[1727016432986,2.34189217,2569.2,2569.1,3.0]
[1727016433393,2.34189217,2569.2,2568.9,3.89266]
[1727016433900,2.34189217,2569.2,2568.9,3.89264]
[1727016434203,2.34189217,2569.2,2568.8,3.89276]
[1727016434487,2.34189217,2569.2,2569.0,3.89256]
[1727016435082,2.34189217,2569.2,2568.9,3.89269]
[1727016435594,2.2883,2568.8,2568.3,3.89353]
[1727016435761,2.2883,2568.8,2568.3,7.78707]
[1727016435960,0.05183468,2568.7,2568.3,3.89353]
[1727016436264,2.2883,2568.8,2568.3,3.89353]
[1727016436600,0.05183579,2568.7,2568.4,3.89336]
[1727016436887,2.2883,2568.8,2568.5,3.89332]
[1727016437392,0.05183579,2568.7,2568.5,3.89324]
[1727016437688,2.2883,2568.8,2568.5,3.89324]
[1727016438065,0.05162473,2568.7,2568.5,3.89324]
[1727016438469,2.2883,2568.8,2568.4,3.0]
[1727016438818,0.05162473,2568.7,2568.5,3.89331]
[1727016439091,2.2883,2568.8,2568.5,3.89331]
[1727016439256,0.05162085,2568.6,2568.5,3.89331]
[1727016439458,2.2883,2568.8,2568.5,3.89324]
[1727016440162,0.05162473,2568.7,2568.5,3.89324]
[1727016440796,0.05162085,2568.6,2568.5,7.78647]
[1727016441109,2.2883,2568.8,2568.6,3.89312]
[1727016441390,0.05162473,2568.7,2568.6,3.89312]
[1727016441589,2.2883,2568.8,2568.6,3.89312]
[1727016441815,2.3547,2569.1,2568.7,3.89301]
[1727016441951,0.05163636,2569.0,2568.8,3.89285]
[1727016443567,0.05163636,2569.0,2568.6,3.89312]
[1727016443568,0.05163636,2569.0,2568.6,3.89306]
[1727016444193,0.05163636,2569.0,2568.8,3.89285]
[1727016445093,0.05163636,2569.0,2568.6,3.89302]
[1727016445627,0.05163636,2569.0,2568.6,7.78611]
[1727016446306,0.05163636,2569.0,2568.4,5.2743]
[1727016446511,0.05163636,2569.0,2568.9,6.89271]
[1727016447381,0.05163636,2569.0,2568.9,6.97055776]
[1727016447582,0.0376914,2569.3,2569.2,3.89226]
[1727016447781,0.08944131,2569.3,2569.2,6.89226]
[1727016448017,0.08944131,2569.3,2569.2,6.97009486]
[1727016448181,0.08944131,2569.3,2569.2,8.05634335]
[1727016448381,0.08944131,2569.3,2569.2,7.97850849]
[1727016449821,0.0376914,2569.3,2569.2,7.97850849]
[1727016451727,0.08771476,2569.3,2569.2,7.97850849]
[1727016451893,0.0376914,2569.3,2569.2,7.97850849]
[1727016452092,0.08771476,2569.3,2569.2,7.97850849]
[1727016452308,0.0376914,2569.3,2569.2,7.97850849]
[1727016452492,0.08771476,2569.3,2569.2,7.97850849]
[1727016452697,0.0376914,2569.3,2569.2,7.97850849]
[1727016452929,0.08771476,2569.3,2569.2,7.97850849]
[1727016453119,0.0376914,2569.3,2569.2,7.97850849]
[1727016453314,0.08771365,2569.3,2569.2,7.97850849]
[1727016453519,0.0376914,2569.3,2569.2,7.97850849]
[1727016453719,0.08771254,2569.3,2569.2,7.97850849]
[1727016453928,2.3923914,2569.3,2569.2,7.97850849]
[1727016454232,2.44241254,2569.3,2569.2,7.97850849]
[1727016454531,2.44241254,2569.3,2569.0,3.0]
[1727016454746,2.44241254,2569.3,2568.9,3.89259]
[1727016455236,6.33455254,2569.3,2568.9,3.0]
[1727016455388,2.3547,2569.2,2568.8,3.89286]
[1727016455593,2.3547,2569.0,2568.6,11.27305]
[1727016455832,0.05000674,2568.9,2568.6,7.38]
[1727016456648,0.05000674,2568.9,2568.6,11.27307]
[1727016457091,0.05000674,2568.9,2568.7,3.89288]
[1727016457295,0.05000674,2568.9,2568.8,3.89286]
[1727016457927,0.05000674,2568.9,2568.7,7.78579]
[1727016458437,0.05000674,2568.9,2568.7,5.409459]
[1727016458843,0.05000674,2568.9,2568.6,7.38]
[1727016459512,0.05000674,2568.9,2568.6,11.27316]
[1727016460247,0.05000674,2568.9,2568.6,3.89316]
[1727016460408,0.05000674,2568.9,2568.5,3.0]
[1727016460610,2.2989,2568.8,2568.5,3.0]
[1727016460923,0.04998442,2568.7,2568.5,3.0]
[1727016461342,2.2989,2568.8,2568.5,3.0]
[1727016461558,0.04998054,2568.6,2568.5,3.0]
[1727016462047,2.2989,2568.8,2568.5,3.0]
[1727016462269,0.04998442,2568.7,2568.5,3.0]
[1727016462555,0.04998442,2568.7,2568.5,6.89324]
[1727016462861,0.04998054,2568.6,2568.5,3.0]
[1727016463047,0.04998054,2568.6,2568.5,8.04983448]
[1727016463233,2.2989,2568.8,2568.6,3.89308]
[1727016463437,0.04998442,2568.7,2568.6,3.89308]
[1727016463621,2.2989,2568.8,2568.6,3.89308]
[1727016463825,2.2989,2568.8,2568.7,3.89301]
[1727016464338,2.2989,2568.8,2568.6,3.89315]
[1727016464540,2.2989,2568.8,2568.5,7.971977]
[1727016464850,2.2989,2568.8,2568.6,3.89306]
[1727016466312,2.2989,2568.8,2568.6,5.0795637]
[1727016466514,2.2989,2568.8,2568.7,3.89301]
[1727016467015,2.2989,2569.2,2568.9,3.89269]
[1727016467854,2.2989,2569.2,2568.9,7.78531]
[1727016468135,2.2989,2569.2,2568.7,3.89287]
[1727016468446,2.2989,2569.2,2568.8,3.89285]
[1727016470156,2.2989,2569.2,2568.8,3.89275]
[1727016470520,2.2989,2569.2,2568.9,3.89258]
[1727016470748,2.2989,2569.2,2569.0,3.89254]
[1727016472146,2.2989,2569.2,2569.0,3.89248]
[1727016473232,2.2989,2569.2,2568.8,7.78553]
[1727016473565,2.2989,2569.1,2568.5,3.0]
[1727016474218,6.19139,2569.1,2568.6,3.89316]
[1727016474455,2.2989,2569.1,2568.6,3.89316]
[1727016474631,2.2989,2569.1,2568.7,3.8929]
[1727016475065,2.2989,2569.1,2568.8,7.78565]
[1727016475275,2.2989,2569.1,2568.9,3.89264]
[1727016475476,2.2989,2569.1,2568.9,7.78528]
[1727016475637,2.2989,2569.1,2568.9,3.89264]
[1727016476337,2.2989,2569.1,2568.7,3.89286]
[1727016476537,2.2989,2569.0,2568.5,10.78639]
[1727016476750,2.34901977,2569.0,2568.5,10.78639]
[1727016476949,6.24158977,2569.0,2568.5,6.89319]
[1727016477241,6.24158977,2569.0,2568.6,3.89316]
[1727016477763,6.24158977,2569.0,2568.5,3.0]
[1727016477952,7.02563419,2569.0,2568.4,3.0]
[1727016478150,7.02563419,2569.0,2568.5,3.89331]
[1727016478354,10.91827419,2569.0,2568.5,3.89331]
[1727016478547,3.89273,2568.9,2568.4,6.89344]
[1727016478946,0.05007565,2568.8,2568.4,6.89344]
[1727016479374,2.2853,2568.7,2568.4,6.89344]
[1727016479561,2.2853,2568.7,2568.5,3.89317]
[1727016479747,0.0500679,2568.6,2568.5,3.89317]
[1727016481637,0.0500679,2568.6,2568.4,6.89344]
[1727016481842,0.0500679,2568.6,2568.4,10.78682]
[1727016482043,0.0500679,2568.6,2568.5,3.89332]
[1727016482378,0.0500679,2568.6,2568.4,6.89337]
[1727016482535,0.0500679,2568.6,2568.4,10.78675]
[1727016482746,0.0500679,2568.6,2568.5,3.89332]
[1727016486491,2.2853,2568.8,2568.5,3.89332]
[1727016486641,2.2853,2568.8,2568.4,6.89345]
[1727016486642,2.2853,2568.8,2568.6,3.89314]
[1727016488061,2.2853,2568.8,2568.6,3.89308]
[1727016488463,2.2853,2568.8,2568.6,7.78618]
[1727016488659,2.2853,2568.8,2568.6,3.89308]
[1727016488899,2.3232,2569.1,2568.6,2.3732]
[1727016489081,2.3232,2569.1,2568.9,3.89263]
[1727016489792,2.3232,2569.1,2568.9,7.78526]
[1727016489967,2.3232,2569.1,2568.9,3.89263]
[1727016490490,2.3232,2569.1,2568.9,7.78525]
[1727016490799,2.3232,2569.1,2568.9,3.89262]
[1727016491655,0.05004334,2569.0,2568.9,3.89262]
[1727016492589,0.05004334,2569.0,2568.8,3.89286]
[1727016492793,0.05004334,2569.0,2568.9,3.89271]
[1727016493148,2.3608914,2569.3,2569.0,3.89255]
[1727016494288,0.0376914,2569.3,2569.0,3.89255]
[1727016494848,2.3232,2569.2,2568.8,1.04040956]
[1727016495066,2.3232,2569.2,2568.7,7.13801559]
[1727016495269,2.3232,2569.2,2568.7,11.03095559]
[1727016495958,2.3232,2569.2,2568.6,3.89316]
[1727016496159,3.89249,2569.1,2568.6,6.89309]
[1727016496493,3.89249,2569.1,2568.6,3.0]
[1727016497649,2.3239,2569.0,2568.6,3.0]
[1727016498297,2.3239,2569.0,2568.6,6.89313]
[1727016498755,2.3239,2569.0,2568.7,3.89299]
[1727016499582,2.3239,2569.0,2568.7,3.89294]
[1727016500860,2.3239,2569.0,2568.7,7.78588]
[1727016501061,2.3239,2569.0,2568.7,3.89293]
[1727016505662,2.3239,2569.0,2568.7,7.78587]
[1727016505865,1.59885438,2569.1,2568.9,3.89271]
[1727016506109,0.0376914,2569.3,2569.2,3.89226]
[1727016506723,0.0874155,2569.3,2569.2,3.89226]
[1727016509535,0.0874155,2569.3,2569.0,3.89246]
[1727016509765,2.3239,2569.2,2569.1,3.0]
[1727016510041,0.04972023,2569.2,2569.1,6.89241]
[1727016510407,0.0376914,2569.3,2569.1,6.89241]
[1727016510645,0.04972023,2569.2,2569.1,6.89241]
[1727016510807,0.04972023,2569.2,2569.1,7.970895]
[1727016511008,0.0376914,2569.3,2569.1,7.970895]
[1727016511230,0.04972023,2569.2,2569.1,7.970895]
[1727016511615,0.0376914,2569.3,2569.2,3.89226]
[1727016512225,0.0376914,2569.3,2569.1,7.970895]
[1727016513043,0.0376914,2569.3,2569.0,6.89248]
[1727016513339,0.0376914,2569.3,2569.0,3.0]
[1727016513518,2.3239,2569.2,2569.0,3.0]
[1727016513716,2.3239,2569.2,2569.0,6.89254]
[1727016514310,2.3239,2569.2,2568.9,6.89271]
[1727016514511,2.3239,2569.2,2568.9,3.89271]
[1727016514709,2.3239,2569.2,2568.7,3.0]
[1727016514906,2.3239,2569.0,2568.7,3.0]
[1727016515148,2.3239,2569.0,2568.6,11.2731]
[1727016516308,2.3239,2569.0,2568.8,3.89283]
[1727016516519,2.3239,2569.2,2568.9,3.89271]
[1727016517626,2.3239,2569.2,2569.0,3.89253]
[1727016521767,0.04976002,2569.1,2569.0,3.89253]
[1727016523363,0.04976002,2569.1,2568.8,3.89272]
[1727016523668,0.04976002,2569.1,2568.9,3.89269]
[1727016524892,0.04976002,2569.1,2568.9,3.89271]
[1727016527076,0.0376914,2569.3,2569.0,3.89244]
[1727016530167,0.0376914,2569.3,2568.8,7.7856]
[1727016530368,0.0376914,2569.3,2568.8,3.89274]
[1727016530690,0.0376914,2569.3,2568.9,3.89261]
[1727016531092,0.0376914,2569.3,2569.0,3.89254]
[1727016533531,0.0376914,2569.3,2569.2,3.89226]
[1727016534222,0.0376914,2569.3,2569.0,3.89254]
[1727016534432,2.4358,2569.2,2569.0,3.89254]
[1727016535339,2.4358,2569.2,2568.9,3.89261]
[1727016535481,2.4358,2569.2,2569.0,3.89254]
[1727016536785,0.04815388,2569.1,2569.0,3.89254]
[1727016538927,0.04815388,2569.1,2568.8,6.89272]
[1727016539174,0.04815388,2569.1,2568.7,3.8929]
[1727016539376,0.04815388,2569.1,2568.6,3.89314]
[1727016539377,2.484,2569.0,2568.6,3.89314]
[1727016539876,0.04821526,2568.9,2568.5,3.89322]
[1727016540377,0.04821526,2568.9,2568.5,7.78646]
[1727016540734,0.04821526,2568.9,2568.6,3.89315]
[1727016540980,0.04821526,2568.9,2568.8,3.89286]
[1727016541449,2.484,2569.2,2568.8,3.89286]
[1727016541649,0.04821526,2568.9,2568.8,3.89286]
[1727016542288,1.63654578,2569.3,2569.1,3.8924]
[1727016542459,1.63654578,2569.3,2568.9,3.89269]
[1727016542460,0.0376914,2569.3,2568.9,3.8926]
[1727016542784,0.0376914,2569.3,2569.0,3.89255]
[1727016544856,0.0376914,2569.3,2569.2,3.89226]
[1727016546086,0.0376914,2569.3,2569.1,6.3732]
[1727016546243,0.0376914,2569.3,2569.1,3.8923]
[1727016546952,2.5216914,2569.3,2569.1,3.8923]
[1727016551796,0.04828197,2569.2,2569.1,6.8923]
[1727016552254,2.5216914,2569.3,2569.1,6.8923]
[1727016552460,0.04828197,2569.2,2569.1,6.8923]
[1727016552801,2.5216914,2569.3,2569.1,6.8923]
[1727016553095,0.04828197,2569.2,2569.1,6.8923]
[1727016553797,2.5216914,2569.3,2569.1,6.8923]
[1727016554153,0.04828197,2569.2,2569.1,6.8923]
[1727016554490,2.5216914,2569.3,2569.1,6.8923]
[1727016554859,0.04666723,2569.2,2569.1,6.8923]
[1727016555566,2.5216914,2569.3,2569.1,6.8923]
[1727016555769,0.04666723,2569.2,2569.1,6.8923]
[1727016556200,2.5216914,2569.3,2569.1,6.8923]
[1727016556374,0.04666564,2569.2,2569.1,6.8923]
[1727016556776,2.5216914,2569.3,2569.1,6.8923]
[1727016556975,0.04666564,2569.2,2569.1,6.8923]
[1727016557488,2.5216914,2569.3,2569.1,6.8923]
[1727016557665,0.04666564,2569.2,2569.1,6.8923]
[1727016557889,2.5216914,2569.3,2569.1,6.8923]
[1727016558093,0.04666564,2569.2,2569.1,6.8923]
[1727016558313,2.5216914,2569.3,2569.1,6.8923]
[1727016558522,0.04666675,2569.2,2569.1,6.8923]
[1727016558692,2.5216914,2569.3,2569.1,6.8923]
[1727016558892,0.04667211,2569.2,2569.1,6.8923]
[1727016559095,2.5216914,2569.3,2569.1,6.8923]
[1727016559394,0.04667211,2569.2,2569.1,6.8923]
[1727016559839,2.5216914,2569.3,2569.1,6.8923]
[1727016560005,0.04667211,2569.2,2569.1,6.8923]
[1727016560328,2.5216914,2569.3,2569.1,6.8923]
[1727016560527,0.04667211,2569.2,2569.1,6.8923]
[1727016560726,2.5216914,2569.3,2569.1,6.8923]
[1727016560945,0.04667211,2569.2,2569.1,6.8923]
[1727016561293,2.5216914,2569.3,2569.1,6.8923]
[1727016561793,0.04667211,2569.2,2569.1,6.8923]
[1727016562107,2.5216914,2569.3,2569.1,6.8923]
[1727016562309,0.04667211,2569.2,2569.1,6.8923]
[1727016562529,2.5216914,2569.3,2569.1,6.8923]
[1727016562743,2.5216914,2569.3,2568.7,7.19132156]
[1727016562744,3.93900211,2569.2,2568.7,6.37385]
[1727016563028,3.93900211,2569.2,2568.4,7.78674]
[1727016563029,3.89271,2568.9,2568.4,7.78674]
[1727016563235,5.49156438,2568.9,2568.5,0.55879929]
[1727016563444,0.04669862,2568.8,2568.4,7.78676]
[1727016563793,0.04669862,2568.8,2568.5,3.8933]
[1727016564031,0.04669862,2568.8,2568.4,3.89337]
[1727016564329,2.4019,2568.7,2568.5,3.0]
[1727016564537,0.04669087,2568.6,2568.5,3.0]
[1727016565818,0.04669087,2568.6,2568.5,6.89332]
[1727016566043,0.04669087,2568.6,2568.5,8.709989]
[1727016566213,2.4019,2569.0,2568.6,3.89308]
[1727016566716,0.0467025,2568.9,2568.6,3.89308]
[1727016566921,0.0467025,2568.9,2568.5,6.89332]
[1727016567095,0.0467025,2568.9,2568.8,6.89286]
[1727016567519,0.04485956,2568.9,2568.8,6.89277]
[1727016567720,2.4019,2569.2,2568.8,6.89277]
[1727016568035,0.04486732,2569.1,2568.8,6.89277]
[1727016568530,4.73489763,2569.1,2568.6,3.89314]
[1727016568895,6.33375201,2569.1,2568.6,3.89314]
[1727016569531,2.4019,2569.0,2568.6,3.89314]
[1727016569734,0.04485956,2568.9,2568.6,3.89314]